[Event "Titled Tuesday Blitz July 6 2021"]
[White "Wagner, Dennis"]
[Black "Rodchenkov, Vitaly"]
[WhiteFideId "24650684"]
[BlackFideId "4152964"]
[WhiteElo "2355"]
[BlackElo "2337"]
[Result "0-1"]
[Round "08"]
[TimeControl "180+1"]
[Date "2021.07.06"]
[WhiteClock "0:00:01"]
[BlackClock "0:00:07"]

1. d4 {[%clk 0:03:00]}  Nf6 {[%clk 0:02:56]} 2. c4 {[%clk 0:03:00]}  e6 {[%clk 0:02:56]} 3. Nf3 {[%clk 0:03:00]}  b6 {[%clk 0:02:55]} 4. a3 {[%clk 0:03:00]}  Bb7 {[%clk 0:02:55]} 5. Nc3 {[%clk 0:03:00]}  Ne4 {[%clk 0:02:56]} 6. Nxe4 {[%clk 0:02:59]}  Bxe4 {[%clk 0:02:56]} 7. Nd2 {[%clk 0:02:59]}  Bg6 {[%clk 0:02:56]} 8. e4 {[%clk 0:02:54]}  Be7 {[%clk 0:02:53]} 9. Bd3 {[%clk 0:02:51]}  O-O {[%clk 0:02:53]} 10. O-O {[%clk 0:02:49]}  d5 {[%clk 0:02:53]} 11. Re1 {[%clk 0:01:22]}  c5 {[%clk 0:02:37]} 12. Nf3 {[%clk 0:00:59]}  cxd4 {[%clk 0:02:22]} 13. cxd5 {[%clk 0:00:56]}  exd5 {[%clk 0:02:21]} 14. e5 {[%clk 0:00:57]}  Nc6 {[%clk 0:02:13]} 15. Bxg6 {[%clk 0:00:50]}  hxg6 {[%clk 0:02:11]} 16. Nxd4 {[%clk 0:00:50]}  Nxd4 {[%clk 0:02:00]} 17. Qxd4 {[%clk 0:00:51]}  Rc8 {[%clk 0:02:00]} 18. Bf4 {[%clk 0:00:50]}  Rc4 {[%clk 0:01:57]} 19. Qd2 {[%clk 0:00:49]}  Qd7 {[%clk 0:01:52]} 20. Rad1 {[%clk 0:00:48]}  Qe6 {[%clk 0:01:49]} 21. Bg3 {[%clk 0:00:47]}  Rd8 {[%clk 0:01:45]} 22. Qd3 {[%clk 0:00:42]}  a5 {[%clk 0:01:16]} 23. h3 {[%clk 0:00:42]}  a4 {[%clk 0:01:14]} 24. Re2 {[%clk 0:00:42]}  b5 {[%clk 0:01:14]} 25. Qf3 {[%clk 0:00:36]}  b4 {[%clk 0:01:08]} 26. axb4 {[%clk 0:00:33]}  Bxb4 {[%clk 0:01:08]} 27. Qd3 {[%clk 0:00:15]}  Ba5 {[%clk 0:00:58]} 28. Rc2 {[%clk 0:00:13]}  Rxc2 {[%clk 0:00:51]} 29. Qxc2 {[%clk 0:00:14]}  d4 {[%clk 0:00:50]} 30. Qxa4 {[%clk 0:00:13]}  Bb6 {[%clk 0:00:49]} 31. Qb5 {[%clk 0:00:14]}  Rd5 {[%clk 0:00:46]} 32. Qd3 {[%clk 0:00:13]}  Qc6 {[%clk 0:00:42]} 33. Kh2 {[%clk 0:00:12]}  Rb5 {[%clk 0:00:38]} 34. Rd2 {[%clk 0:00:12]}  Rb4 {[%clk 0:00:36]} 35. Rc2 {[%clk 0:00:12]}  Qd5 {[%clk 0:00:34]} 36. Rc8+ {[%clk 0:00:11]}  Kh7 {[%clk 0:00:33]} 37. Rc2 {[%clk 0:00:03]}  Rb3 {[%clk 0:00:28]} 38. Qd1 {[%clk 0:00:03]}  d3 {[%clk 0:00:26]} 39. Rc8 {[%clk 0:00:03]}  Rb4 {[%clk 0:00:18]} 40. Rc3 {[%clk 0:00:01]}  d2 {[%clk 0:00:17]} 41. Rc2 {[%clk 0:00:01]}  Rd4 {[%clk 0:00:15]} 42. b3 {[%clk 0:00:01]}  Ba5 {[%clk 0:00:15]} 43. b4 {[%clk 0:00:01]}  Bxb4 {[%clk 0:00:15]} 44. f3 {[%clk 0:00:02]}  Rd3 {[%clk 0:00:14]} 45. Rb2 {[%clk 0:00:02]}  Bc5 {[%clk 0:00:14]} 46. Rc2 {[%clk 0:00:02]}  Be3 {[%clk 0:00:13]} 47. Rb2 {[%clk 0:00:02]}  Bd4 {[%clk 0:00:13]} 48. Rc2 {[%clk 0:00:03]}  Bxe5 {[%clk 0:00:13]} 49. f4 {[%clk 0:00:03]}  Bd6 {[%clk 0:00:13]} 50. Rc8 {[%clk 0:00:03]}  Qf5 {[%clk 0:00:10]} 51. Rd8 {[%clk 0:00:03]}  Rxg3 {[%clk 0:00:07]} 52. Rxd6 {[%clk 0:00:01]}  Qxf4 {[%clk 0:00:07]} 0-1


[Site "https://www.chess.com"]

[Event "Titled Tuesday Blitz July 6 2021"]
[White "Williams, Simon K"]
[Black "Eynullayev, Atilla"]
[WhiteFideId "404454"]
[BlackFideId "13413570"]
[WhiteElo "2468"]
[BlackElo "1997"]
[Result "1-0"]
[Round "08"]
[TimeControl "180+1"]
[Date "2021.07.06"]
[WhiteClock "0:00:11"]
[BlackClock "0:00:05"]

1. f4 {[%clk 0:03:00]}  Nf6 {[%clk 0:02:58]} 2. Nf3 {[%clk 0:03:00]}  d5 {[%clk 0:02:58]} 3. e3 {[%clk 0:02:59]}  g6 {[%clk 0:02:57]} 4. g3 {[%clk 0:02:58]}  Bg7 {[%clk 0:02:57]} 5. Bg2 {[%clk 0:02:57]}  O-O {[%clk 0:02:58]} 6. O-O {[%clk 0:02:58]}  c5 {[%clk 0:02:56]} 7. d3 {[%clk 0:02:58]}  b5 {[%clk 0:02:56]} 8. Ne5 {[%clk 0:02:54]}  Bb7 {[%clk 0:02:56]} 9. a4 {[%clk 0:02:54]}  b4 {[%clk 0:02:55]} 10. a5 {[%clk 0:02:54]}  a6 {[%clk 0:02:51]} 11. c3 {[%clk 0:02:53]}  Nc6 {[%clk 0:02:45]} 12. Nxc6 {[%clk 0:02:51]}  Bxc6 {[%clk 0:02:45]} 13. cxb4 {[%clk 0:02:52]}  cxb4 {[%clk 0:02:45]} 14. Nd2 {[%clk 0:02:51]}  Rc8 {[%clk 0:02:18]} 15. Nf3 {[%clk 0:02:46]}  Bb7 {[%clk 0:02:05]} 16. Qb3 {[%clk 0:02:32]}  d4 {[%clk 0:01:46]} 17. e4 {[%clk 0:02:02]}  Rb8 {[%clk 0:01:27]} 18. h3 {[%clk 0:01:57]}  Nd7 {[%clk 0:01:11]} 19. Bd2 {[%clk 0:01:40]}  Nc5 {[%clk 0:01:10]} 20. Qc4 {[%clk 0:01:40]}  Rc8 {[%clk 0:01:09]} 21. Qxb4 {[%clk 0:01:36]}  Ba8 {[%clk 0:00:47]} 22. Qa3 {[%clk 0:01:34]}  Rc7 {[%clk 0:00:05]} 23. Rac1 {[%clk 0:01:29]}  Nb7 {[%clk 0:00:04]} 24. Rxc7 {[%clk 0:01:26]}  Qxc7 {[%clk 0:00:05]} 25. Rc1 {[%clk 0:01:26]}  Qd7 {[%clk 0:00:04]} 26. Ne5 {[%clk 0:01:16]}  Bxe5 {[%clk 0:00:03]} 27. fxe5 {[%clk 0:01:17]}  Nd8 {[%clk 0:00:03]} 28. Qc5 {[%clk 0:00:54]}  Ne6 {[%clk 0:00:03]} 29. Qb6 {[%clk 0:00:54]}  Rc8 {[%clk 0:00:02]} 30. Qxa6 {[%clk 0:00:49]}  Rxc1+ {[%clk 0:00:01]} 31. Bxc1 {[%clk 0:00:49]}  Bb7 {[%clk 0:00:02]} 32. Qc4 {[%clk 0:00:49]}  Qd8 {[%clk 0:00:01]} 33. Bd2 {[%clk 0:00:48]}  Qb8 {[%clk 0:00:01]} 34. b4 {[%clk 0:00:48]}  Qa8 {[%clk 0:00:02]} 35. b5 {[%clk 0:00:47]}  Bc8 {[%clk 0:00:03]} 36. a6 {[%clk 0:00:47]}  Bd7 {[%clk 0:00:03]} 37. b6 {[%clk 0:00:46]}  Bc6 {[%clk 0:00:03]} 38. h4 {[%clk 0:00:43]}  h5 {[%clk 0:00:03]} 39. Bh3 {[%clk 0:00:40]}  Nf8 {[%clk 0:00:03]} 40. Bb4 {[%clk 0:00:36]}  e6 {[%clk 0:00:04]} 41. Bxf8 {[%clk 0:00:35]}  Kxf8 {[%clk 0:00:05]} 42. Bf1 {[%clk 0:00:34]}  Qc8 {[%clk 0:00:05]} 43. Be2 {[%clk 0:00:30]}  Qd7 {[%clk 0:00:05]} 44. Bd1 {[%clk 0:00:27]}  Kg7 {[%clk 0:00:05]} 45. Qb4 {[%clk 0:00:25]}  Bb5 {[%clk 0:00:05]} 46. b7 {[%clk 0:00:24]}  Qc7 {[%clk 0:00:04]} 47. Qxb5 {[%clk 0:00:22]}  Qc1 {[%clk 0:00:05]} 48. Qb3 {[%clk 0:00:13]}  Qe3+ {[%clk 0:00:05]} 49. Kg2 {[%clk 0:00:12]}  Qd2+ {[%clk 0:00:05]} 50. Kh3 {[%clk 0:00:12]}  Qe1 {[%clk 0:00:05]} 51. Qc2 {[%clk 0:00:12]}  Qh1+ {[%clk 0:00:05]} 52. Qh2 {[%clk 0:00:12]}  Qf1+ {[%clk 0:00:03]} 53. Qg2 {[%clk 0:00:12]}  Qxd1 {[%clk 0:00:03]} 54. b8=Q {[%clk 0:00:12]}  Qg4+ {[%clk 0:00:03]} 55. Kh2 {[%clk 0:00:11]}  g5 {[%clk 0:00:04]} 56. Qd8 {[%clk 0:00:11]}  gxh4 {[%clk 0:00:05]} 57. Qxh4 {[%clk 0:00:12]}  Qg6 {[%clk 0:00:05]} 58. a7 {[%clk 0:00:11]} 1-0


[Site "https://www.chess.com"]

[Event "Titled Tuesday Blitz July 6 2021"]
[White "Yanchenko, Roman"]
[Black "Jobava, Baadur"]
[WhiteFideId "4137329"]
[BlackFideId "13601520"]
[WhiteElo "2514"]
[BlackElo "2748"]
[Result "0-1"]
[Round "08"]
[TimeControl "180+1"]
[Date "2021.07.06"]
[WhiteClock "0:00:04"]
[BlackClock "0:00:08"]

1. d4 {[%clk 0:03:00]}  Nf6 {[%clk 0:02:57]} 2. c4 {[%clk 0:03:00]}  c5 {[%clk 0:02:57]} 3. Nf3 {[%clk 0:03:00]}  e6 {[%clk 0:02:57]} 4. Nc3 {[%clk 0:03:00]}  cxd4 {[%clk 0:02:54]} 5. Nxd4 {[%clk 0:03:01]}  b6 {[%clk 0:02:54]} 6. e3 {[%clk 0:02:50]}  Bb7 {[%clk 0:02:53]} 7. Nf3 {[%clk 0:02:50]}  Be7 {[%clk 0:02:51]} 8. Be2 {[%clk 0:02:50]}  O-O {[%clk 0:02:51]} 9. O-O {[%clk 0:02:50]}  Nc6 {[%clk 0:02:51]} 10. b3 {[%clk 0:02:50]}  Qb8 {[%clk 0:02:49]} 11. Bb2 {[%clk 0:02:50]}  Rd8 {[%clk 0:02:49]} 12. Rc1 {[%clk 0:02:48]}  h6 {[%clk 0:02:49]} 13. Qc2 {[%clk 0:02:48]}  d5 {[%clk 0:02:47]} 14. cxd5 {[%clk 0:02:47]}  Nb4 {[%clk 0:02:47]} 15. Qb1 {[%clk 0:02:47]}  Nbxd5 {[%clk 0:02:46]} 16. Nxd5 {[%clk 0:02:45]}  Bxd5 {[%clk 0:02:47]} 17. h3 {[%clk 0:02:44]}  Qb7 {[%clk 0:02:47]} 18. Rfd1 {[%clk 0:02:43]}  Rac8 {[%clk 0:02:44]} 19. Qa1 {[%clk 0:02:43]}  Ne8 {[%clk 0:02:39]} 20. Ne1 {[%clk 0:02:31]}  Bf8 {[%clk 0:02:36]} 21. Bf3 {[%clk 0:02:31]}  Nc7 {[%clk 0:02:32]} 22. Be5 {[%clk 0:02:00]}  Bxf3 {[%clk 0:02:22]} 23. Rxd8 {[%clk 0:01:56]}  Rxd8 {[%clk 0:01:22]} 24. Rxc7 {[%clk 0:01:56]}  Qa6 {[%clk 0:01:02]} 25. Nxf3 {[%clk 0:01:53]}  Qe2 {[%clk 0:01:02]} 26. Rc1 {[%clk 0:01:52]}  f6 {[%clk 0:01:02]} 27. Bb2 {[%clk 0:01:40]}  e5 {[%clk 0:01:02]} 28. Qb1 {[%clk 0:01:39]}  Qa6 {[%clk 0:00:49]} 29. a4 {[%clk 0:01:36]}  b5 {[%clk 0:00:46]} 30. Qe4 {[%clk 0:01:33]}  Rb8 {[%clk 0:00:42]} 31. axb5 {[%clk 0:01:22]}  Qxb5 {[%clk 0:00:41]} 32. Nd2 {[%clk 0:01:10]}  Qa5 {[%clk 0:00:37]} 33. Qc4+ {[%clk 0:01:08]}  Kh8 {[%clk 0:00:36]} 34. Ne4 {[%clk 0:01:07]}  Qb6 {[%clk 0:00:34]} 35. Rc3 {[%clk 0:00:44]}  Qb7 {[%clk 0:00:31]} 36. Ng3 {[%clk 0:00:42]}  a5 {[%clk 0:00:29]} 37. Kh2 {[%clk 0:00:38]}  Qd7 {[%clk 0:00:25]} 38. Rd3 {[%clk 0:00:38]}  Qe8 {[%clk 0:00:25]} 39. Bc3 {[%clk 0:00:34]}  Rc8 {[%clk 0:00:21]} 40. Qe4 {[%clk 0:00:34]}  Qb5 {[%clk 0:00:20]} 41. Bd2 {[%clk 0:00:29]}  Rb8 {[%clk 0:00:17]} 42. Nf5 {[%clk 0:00:29]}  Kg8 {[%clk 0:00:15]} 43. Rc3 {[%clk 0:00:16]}  Bb4 {[%clk 0:00:14]} 44. Rc2 {[%clk 0:00:16]}  Bf8 {[%clk 0:00:12]} 45. Qc4+ {[%clk 0:00:14]}  Qxc4 {[%clk 0:00:12]} 46. bxc4 {[%clk 0:00:15]}  a4 {[%clk 0:00:12]} 47. c5 {[%clk 0:00:15]}  a3 {[%clk 0:00:12]} 48. Bc1 {[%clk 0:00:15]}  Ra8 {[%clk 0:00:11]} 49. Ra2 {[%clk 0:00:15]}  Bxc5 {[%clk 0:00:11]} 50. Ng3 {[%clk 0:00:15]}  Be7 {[%clk 0:00:11]} 51. Ne4 {[%clk 0:00:15]}  Kf7 {[%clk 0:00:10]} 52. Nd2 {[%clk 0:00:15]}  Rd8 {[%clk 0:00:08]} 53. Ra1 {[%clk 0:00:14]}  Ke6 {[%clk 0:00:07]} 54. Nc4 {[%clk 0:00:14]}  Rd1 {[%clk 0:00:06]} 55. Bb2 {[%clk 0:00:12]}  Rxa1 {[%clk 0:00:04]} 56. Bxa1 {[%clk 0:00:12]}  Kd5 {[%clk 0:00:05]} 57. Nd2 {[%clk 0:00:11]}  Bb4 {[%clk 0:00:05]} 58. Nb3 {[%clk 0:00:11]}  Kc4 {[%clk 0:00:05]} 59. Nc1 {[%clk 0:00:11]}  Bd2 {[%clk 0:00:05]} 60. Ne2 {[%clk 0:00:10]}  Kd3 {[%clk 0:00:05]} 61. Ng3 {[%clk 0:00:10]}  a2 {[%clk 0:00:05]} 62. Kg1 {[%clk 0:00:08]}  Bc3 {[%clk 0:00:06]} 63. Ne2 {[%clk 0:00:04]}  Bd2 {[%clk 0:00:04]} 64. Kf1 {[%clk 0:00:04]}  Kc2 {[%clk 0:00:05]} 65. e4 {[%clk 0:00:03]}  Kb1 {[%clk 0:00:05]} 66. Nd4 {[%clk 0:00:03]}  exd4 {[%clk 0:00:04]} 67. Bxd4 {[%clk 0:00:02]}  Bc1 {[%clk 0:00:04]} 68. e5 {[%clk 0:00:03]}  fxe5 {[%clk 0:00:05]} 69. Bxe5 {[%clk 0:00:03]}  Bb2 {[%clk 0:00:05]} 70. Bf4 {[%clk 0:00:03]}  a1=Q {[%clk 0:00:05]} 71. g4 {[%clk 0:00:04]}  Qa6+ {[%clk 0:00:05]} 72. Kg2 {[%clk 0:00:04]}  Kc2 {[%clk 0:00:06]} 73. f3 {[%clk 0:00:05]}  Qb7 {[%clk 0:00:07]} 74. Be3 {[%clk 0:00:05]}  Bc3 {[%clk 0:00:07]} 75. Bf2 {[%clk 0:00:04]}  Qd5 {[%clk 0:00:08]} 0-1


[Site "https://www.chess.com"]

[Event "Titled Tuesday Blitz July 6 2021"]
[White "Yandarbiev, Ruslan"]
[Black "Hebden, Mark L"]
[WhiteFideId "4115023"]
[BlackFideId "400084"]
[WhiteElo "2114"]
[BlackElo "2457"]
[Result "0-1"]
[Round "08"]
[TimeControl "180+1"]
[Date "2021.07.06"]
[WhiteClock "0:00:54"]
[BlackClock "0:01:29"]

1. e4 {[%clk 0:03:00]}  e5 {[%clk 0:02:56]} 2. Nf3 {[%clk 0:03:00]}  Nc6 {[%clk 0:02:56]} 3. Bb5 {[%clk 0:03:01]}  a6 {[%clk 0:02:56]} 4. Ba4 {[%clk 0:03:01]}  Nf6 {[%clk 0:02:56]} 5. O-O {[%clk 0:03:01]}  Be7 {[%clk 0:02:56]} 6. Bxc6 {[%clk 0:03:02]}  dxc6 {[%clk 0:02:55]} 7. d3 {[%clk 0:03:03]}  Nd7 {[%clk 0:02:54]} 8. h3 {[%clk 0:03:04]}  c5 {[%clk 0:02:52]} 9. Nbd2 {[%clk 0:03:04]}  b5 {[%clk 0:02:51]} 10. a4 {[%clk 0:03:02]}  Rb8 {[%clk 0:02:51]} 11. b3 {[%clk 0:02:59]}  Bd6 {[%clk 0:02:50]} 12. Bb2 {[%clk 0:02:54]}  O-O {[%clk 0:02:49]} 13. axb5 {[%clk 0:02:32]}  axb5 {[%clk 0:02:48]} 14. Ra7 {[%clk 0:02:31]}  Re8 {[%clk 0:02:44]} 15. Qa1 {[%clk 0:02:30]}  f6 {[%clk 0:02:40]} 16. Nh4 {[%clk 0:02:28]}  g6 {[%clk 0:02:38]} 17. Nhf3 {[%clk 0:02:17]}  Nf8 {[%clk 0:02:37]} 18. Nh2 {[%clk 0:02:11]}  Ne6 {[%clk 0:02:35]} 19. Ndf3 {[%clk 0:02:11]}  c4 {[%clk 0:02:25]} 20. bxc4 {[%clk 0:02:07]}  bxc4 {[%clk 0:02:25]} 21. d4 {[%clk 0:02:02]}  exd4 {[%clk 0:02:20]} 22. Nxd4 {[%clk 0:02:03]}  Rxb2 {[%clk 0:02:07]} 23. Nxe6 {[%clk 0:02:02]}  Bxh2+ {[%clk 0:02:04]} 24. Kxh2 {[%clk 0:01:59]}  Qd6+ {[%clk 0:02:02]} 25. f4 {[%clk 0:01:48]}  Rb7 {[%clk 0:02:00]} 26. Rxb7 {[%clk 0:01:40]}  Bxb7 {[%clk 0:02:00]} 27. Nd4 {[%clk 0:01:26]}  Rxe4 {[%clk 0:01:45]} 28. Nb5 {[%clk 0:01:14]}  Qc6 {[%clk 0:01:40]} 29. Na7 {[%clk 0:01:08]}  Qb6 {[%clk 0:01:38]} 30. Rd1 {[%clk 0:01:03]}  Re2 {[%clk 0:01:31]} 31. Rd8+ {[%clk 0:00:54]}  Kf7 {[%clk 0:01:29]} 0-1


[Site "https://www.chess.com"]

[Event "Titled Tuesday Blitz July 6 2021"]
[White "Zemach, Roee"]
[Black "Terletsky, Oleg"]
[WhiteFideId "2818531"]
[BlackFideId "14116774"]
[WhiteElo "2131"]
[BlackElo "2094"]
[Result "0-1"]
[Round "08"]
[TimeControl "180+1"]
[Date "2021.07.06"]
[WhiteClock "0:00:05"]
[BlackClock "0:00:07"]

1. e4 {[%clk 0:03:00]}  e5 {[%clk 0:02:58]} 2. Nf3 {[%clk 0:03:00]}  Nc6 {[%clk 0:02:58]} 3. Bb5 {[%clk 0:02:59]}  a6 {[%clk 0:02:58]} 4. Ba4 {[%clk 0:02:59]}  Nf6 {[%clk 0:02:58]} 5. O-O {[%clk 0:03:00]}  Be7 {[%clk 0:02:58]} 6. Re1 {[%clk 0:02:59]}  b5 {[%clk 0:02:58]} 7. Bb3 {[%clk 0:03:00]}  d6 {[%clk 0:02:59]} 8. c3 {[%clk 0:02:59]}  O-O {[%clk 0:02:59]} 9. h3 {[%clk 0:03:00]}  Bb7 {[%clk 0:02:59]} 10. d3 {[%clk 0:03:00]}  Na5 {[%clk 0:02:57]} 11. Bc2 {[%clk 0:03:00]}  c5 {[%clk 0:02:57]} 12. Nbd2 {[%clk 0:03:00]}  Re8 {[%clk 0:02:58]} 13. Nf1 {[%clk 0:02:59]}  Bf8 {[%clk 0:02:58]} 14. Ng3 {[%clk 0:02:53]}  d5 {[%clk 0:02:58]} 15. Bg5 {[%clk 0:02:48]}  h6 {[%clk 0:02:53]} 16. Bd2 {[%clk 0:02:36]}  d4 {[%clk 0:02:53]} 17. cxd4 {[%clk 0:02:32]}  cxd4 {[%clk 0:02:50]} 18. Nf5 {[%clk 0:02:31]}  Kh7 {[%clk 0:02:28]} 19. Nh2 {[%clk 0:02:05]}  g6 {[%clk 0:02:26]} 20. Ng3 {[%clk 0:02:05]}  Rc8 {[%clk 0:02:14]} 21. Rf1 {[%clk 0:02:04]}  Bd6 {[%clk 0:01:58]} 22. b4 {[%clk 0:01:39]}  Nc6 {[%clk 0:01:54]} 23. a3 {[%clk 0:01:39]}  Rc7 {[%clk 0:01:44]} 24. Bb3 {[%clk 0:01:29]}  Bc8 {[%clk 0:01:42]} 25. Qb1 {[%clk 0:01:03]}  Qe7 {[%clk 0:01:28]} 26. Qa2 {[%clk 0:00:57]}  Be6 {[%clk 0:01:27]} 27. Rfb1 {[%clk 0:00:44]}  Bxb3 {[%clk 0:01:22]} 28. Qxb3 {[%clk 0:00:44]}  Rec8 {[%clk 0:01:22]} 29. a4 {[%clk 0:00:43]}  Rb8 {[%clk 0:01:03]} 30. axb5 {[%clk 0:00:39]}  Rxb5 {[%clk 0:01:03]} 31. Qa4 {[%clk 0:00:39]}  Nxb4 {[%clk 0:00:49]} 32. Bxb4 {[%clk 0:00:35]}  Rxb4 {[%clk 0:00:44]} 33. Qxa6 {[%clk 0:00:33]}  Rxb1+ {[%clk 0:00:31]} 34. Rxb1 {[%clk 0:00:34]}  Kg7 {[%clk 0:00:23]} 35. Nf3 {[%clk 0:00:33]}  Nd7 {[%clk 0:00:20]} 36. Rb7 {[%clk 0:00:17]}  Nc5 {[%clk 0:00:18]} 37. Rxc7 {[%clk 0:00:16]}  Qxc7 {[%clk 0:00:19]} 38. Qc4 {[%clk 0:00:17]}  Qb6 {[%clk 0:00:14]} 39. Kh2 {[%clk 0:00:16]}  Qb1 {[%clk 0:00:13]} 40. Nxe5 {[%clk 0:00:16]}  Bxe5 {[%clk 0:00:12]} 41. Qxc5 {[%clk 0:00:16]}  Bxg3+ {[%clk 0:00:11]} 42. fxg3 {[%clk 0:00:12]}  Qxd3 {[%clk 0:00:12]} 43. Qe5+ {[%clk 0:00:13]}  Kg8 {[%clk 0:00:12]} 44. Qe8+ {[%clk 0:00:13]}  Kg7 {[%clk 0:00:13]} 45. Qe5+ {[%clk 0:00:13]}  Kg8 {[%clk 0:00:13]} 46. h4 {[%clk 0:00:11]}  h5 {[%clk 0:00:13]} 47. Qe8+ {[%clk 0:00:11]}  Kg7 {[%clk 0:00:13]} 48. Qe5+ {[%clk 0:00:11]}  Kg8 {[%clk 0:00:13]} 49. Qd5 {[%clk 0:00:12]}  Qe3 {[%clk 0:00:13]} 50. Qe5 {[%clk 0:00:11]}  d3 {[%clk 0:00:13]} 51. Qe8+ {[%clk 0:00:11]}  Kg7 {[%clk 0:00:13]} 52. Qe5+ {[%clk 0:00:12]}  Kf8 {[%clk 0:00:13]} 53. Qd6+ {[%clk 0:00:12]}  Ke8 {[%clk 0:00:12]} 54. Qe5+ {[%clk 0:00:12]}  Kd7 {[%clk 0:00:12]} 55. Qd5+ {[%clk 0:00:13]}  Kc7 {[%clk 0:00:13]} 56. Qxf7+ {[%clk 0:00:13]}  Kb6 {[%clk 0:00:12]} 57. Qxg6+ {[%clk 0:00:13]}  Kb5 {[%clk 0:00:12]} 58. Qf5+ {[%clk 0:00:13]}  Kc4 {[%clk 0:00:12]} 59. Qd5+ {[%clk 0:00:13]}  Kc3 {[%clk 0:00:12]} 60. e5 {[%clk 0:00:13]}  d2 {[%clk 0:00:12]} 61. e6 {[%clk 0:00:14]}  Kc2 {[%clk 0:00:12]} 62. Qc4+ {[%clk 0:00:14]}  Kb1 {[%clk 0:00:11]} 63. Qb4+ {[%clk 0:00:14]}  Kc2 {[%clk 0:00:10]} 64. Qa4+ {[%clk 0:00:14]}  Kc1 {[%clk 0:00:10]} 65. Qa1+ {[%clk 0:00:14]}  Kc2 {[%clk 0:00:10]} 66. Qa2+ {[%clk 0:00:14]}  Kc1 {[%clk 0:00:11]} 67. Qc4+ {[%clk 0:00:13]}  Kb2 {[%clk 0:00:10]} 68. Qb4+ {[%clk 0:00:12]}  Kc2 {[%clk 0:00:10]} 69. Qc4+ {[%clk 0:00:10]}  Kb1 {[%clk 0:00:10]} 70. Qb4+ {[%clk 0:00:08]}  Ka2 {[%clk 0:00:09]} 71. Qa4+ {[%clk 0:00:08]}  Kb2 {[%clk 0:00:10]} 72. Qd1 {[%clk 0:00:08]}  Kc3 {[%clk 0:00:09]} 73. Qa4 {[%clk 0:00:07]}  Qxe6 {[%clk 0:00:09]} 74. Qa3+ {[%clk 0:00:07]}  Qb3 {[%clk 0:00:09]} 75. Qc5+ {[%clk 0:00:07]}  Kb2 {[%clk 0:00:09]} 76. Qd4+ {[%clk 0:00:07]}  Qc3 {[%clk 0:00:10]} 77. Qb6+ {[%clk 0:00:07]}  Kc1 {[%clk 0:00:10]} 78. Qh6 {[%clk 0:00:06]}  Kc2 {[%clk 0:00:09]} 79. Qg6+ {[%clk 0:00:06]}  Kb2 {[%clk 0:00:09]} 80. Qxh5 {[%clk 0:00:05]}  Qc2 {[%clk 0:00:08]} 81. Qb5+ {[%clk 0:00:05]}  Kc1 {[%clk 0:00:08]} 82. Qg5 {[%clk 0:00:05]}  Kb1 {[%clk 0:00:08]} 83. Qb5+ {[%clk 0:00:05]}  Kc1 {[%clk 0:00:08]} 84. Qg5 {[%clk 0:00:05]}  Kb2 {[%clk 0:00:08]} 85. Qb5+ {[%clk 0:00:05]}  Qb3 {[%clk 0:00:07]} 86. Qe2 {[%clk 0:00:05]}  Kc1 {[%clk 0:00:07]} 0-1


[Site "https://www.chess.com"]

[Event "Titled Tuesday Blitz July 6 2021"]
[White "Afanasiev, Nikita"]
[Black "Lodici, Lorenzo"]
[WhiteFideId "24183555"]
[BlackFideId "884189"]
[WhiteElo "2521"]
[BlackElo "2265"]
[Result "1-0"]
[Round "09"]
[TimeControl "180+1"]
[Date "2021.07.06"]
[WhiteClock "0:00:10"]
[BlackClock "0:00:02"]

1. e4 {[%clk 0:02:57]}  e5 {[%clk 0:02:56]} 2. f4 {[%clk 0:02:55]}  exf4 {[%clk 0:02:54]} 3. Nf3 {[%clk 0:02:55]}  d6 {[%clk 0:02:55]} 4. d4 {[%clk 0:02:50]}  g5 {[%clk 0:02:55]} 5. Bc4 {[%clk 0:02:46]}  h6 {[%clk 0:02:48]} 6. Nc3 {[%clk 0:02:43]}  Bg7 {[%clk 0:02:48]} 7. h4 {[%clk 0:02:40]}  g4 {[%clk 0:02:47]} 8. Ng1 {[%clk 0:02:36]}  Nc6 {[%clk 0:02:47]} 9. Nce2 {[%clk 0:02:35]}  Nf6 {[%clk 0:02:29]} 10. Bd3 {[%clk 0:02:22]}  Qe7 {[%clk 0:02:26]} 11. Nxf4 {[%clk 0:02:17]}  Nxd4 {[%clk 0:02:23]} 12. Nge2 {[%clk 0:02:09]}  Nxe2 {[%clk 0:02:13]} 13. Qxe2 {[%clk 0:02:09]}  Bd7 {[%clk 0:02:08]} 14. Bd2 {[%clk 0:02:06]}  O-O-O {[%clk 0:02:06]} 15. O-O-O {[%clk 0:02:05]}  Rde8 {[%clk 0:01:55]} 16. Bc3 {[%clk 0:02:03]}  h5 {[%clk 0:01:51]} 17. Kb1 {[%clk 0:02:02]}  Rhg8 {[%clk 0:01:48]} 18. Rde1 {[%clk 0:01:59]}  Bc6 {[%clk 0:01:47]} 19. Rhf1 {[%clk 0:01:55]}  Bxe4 {[%clk 0:01:21]} 20. Nxh5 {[%clk 0:01:46]}  Nxh5 {[%clk 0:01:12]} 21. Bxe4 {[%clk 0:01:31]}  Bxc3 {[%clk 0:01:08]} 22. bxc3 {[%clk 0:01:10]}  d5 {[%clk 0:00:23]} 23. Bf5+ {[%clk 0:01:05]}  Kd8 {[%clk 0:00:22]} 24. Qb5 {[%clk 0:01:03]}  Qxe1+ {[%clk 0:00:17]} 25. Rxe1 {[%clk 0:01:03]}  Rxe1+ {[%clk 0:00:18]} 26. Kb2 {[%clk 0:01:03]}  Nf6 {[%clk 0:00:18]} 27. Qxb7 {[%clk 0:01:02]}  Rge8 {[%clk 0:00:15]} 28. Qxa7 {[%clk 0:00:56]}  R8e5 {[%clk 0:00:13]} 29. Qb8+ {[%clk 0:00:48]}  Ke7 {[%clk 0:00:13]} 30. Qxc7+ {[%clk 0:00:49]}  Kf8 {[%clk 0:00:13]} 31. Bd3 {[%clk 0:00:46]}  Re7 {[%clk 0:00:04]} 32. Qf4 {[%clk 0:00:42]}  Rb7+ {[%clk 0:00:04]} 33. Ka3 {[%clk 0:00:41]}  Re6 {[%clk 0:00:02]} 34. Qa4 {[%clk 0:00:37]}  Kg7 {[%clk 0:00:01]} 35. h5 {[%clk 0:00:21]}  Ree7 {[%clk 0:00:01]} 36. h6+ {[%clk 0:00:11]}  Kf8 {[%clk 0:00:02]} 37. Qf4 {[%clk 0:00:10]} 1-0


[Site "https://www.chess.com"]

[Event "Titled Tuesday Blitz July 6 2021"]
[White "AleksanderHnydiuk"]
[Black "Quintiliano Pinto, Renato R."]
[BlackFideId "2117568"]
[WhiteElo "2538"]
[BlackElo "2439"]
[Result "1-0"]
[Round "09"]
[TimeControl "180+1"]
[Date "2021.07.06"]
[WhiteClock "0:01:24"]
[BlackClock "0:00:01"]

1. d4 {[%clk 0:03:00]}  Nf6 {[%clk 0:02:59]} 2. c4 {[%clk 0:03:00]}  e6 {[%clk 0:02:59]} 3. g3 {[%clk 0:03:00]}  d5 {[%clk 0:02:59]} 4. Nf3 {[%clk 0:02:59]}  Be7 {[%clk 0:02:59]} 5. Bg2 {[%clk 0:02:59]}  O-O {[%clk 0:02:59]} 6. Qc2 {[%clk 0:03:00]}  c5 {[%clk 0:02:58]} 7. O-O {[%clk 0:02:58]}  dxc4 {[%clk 0:02:26]} 8. dxc5 {[%clk 0:02:54]}  Bxc5 {[%clk 0:02:21]} 9. Qxc4 {[%clk 0:02:53]}  Nbd7 {[%clk 0:02:17]} 10. Nc3 {[%clk 0:02:47]}  a6 {[%clk 0:02:14]} 11. Qb3 {[%clk 0:02:45]}  Rb8 {[%clk 0:02:05]} 12. Bf4 {[%clk 0:02:44]}  Ra8 {[%clk 0:02:00]} 13. Rac1 {[%clk 0:02:43]}  Qe7 {[%clk 0:01:53]} 14. Rfd1 {[%clk 0:02:39]}  h6 {[%clk 0:01:39]} 15. Na4 {[%clk 0:02:38]}  Ba7 {[%clk 0:01:39]} 16. Bd6 {[%clk 0:02:37]}  Qe8 {[%clk 0:01:31]} 17. e3 {[%clk 0:02:28]}  b5 {[%clk 0:01:24]} 18. Nc3 {[%clk 0:02:26]}  Bb7 {[%clk 0:01:24]} 19. a4 {[%clk 0:02:14]}  Nc5 {[%clk 0:00:52]} 20. Qa3 {[%clk 0:02:13]}  Nfd7 {[%clk 0:00:40]} 21. axb5 {[%clk 0:02:03]}  axb5 {[%clk 0:00:36]} 22. Qb4 {[%clk 0:01:53]}  Bc6 {[%clk 0:00:25]} 23. Nd4 {[%clk 0:01:33]}  Bxg2 {[%clk 0:00:22]} 24. Kxg2 {[%clk 0:01:34]}  Bb6 {[%clk 0:00:08]} 25. Qxb5 {[%clk 0:01:30]}  Ra5 {[%clk 0:00:04]} 26. Qe2 {[%clk 0:01:30]}  Qa8+ {[%clk 0:00:04]} 27. Qf3 {[%clk 0:01:26]}  Ra6 {[%clk 0:00:01]} 28. Bxf8 {[%clk 0:01:24]} 1-0


[Site "https://www.chess.com"]